Cogmind - Beta 10.1 @@@ ROGUE MODE // 2020.10.15 @ 17:06:32 Player: cavemonk Result: Self-destructed Performance ------------- Evolutions (4) 2000 Regions Visited (11) 2200 Robots Destroyed (162) 810 Value Destroyed (5730) 5730 Prototype IDs (28) 560 Alien Tech Used (0) 0 Bonus (-2167) -2167 TOTAL SCORE: 9133 Bonus ------- High Alert Combat Kills 931 Follower Combat Kills 494 Entered Garrisons 400 Used RIF Installer 1000 Aligned with FarCom 300 Friendly Fire -5292 Cogmind --------- Core Integrity 657/850 Matter 20/300 Energy 3/100 System Corruption 2% Temperature Cool (0) Movement Walking (210) Ox3 Location -6/Lower Caves Parts ------- > --- POWER (1) -------- (None) > --- PROPULSION (2) --- Carbon-fiber Leg Flexi-carbon Leg > --- UTILITY (8) ------ High-capacity Storage Unit High-capacity Storage Unit High-capacity Storage Unit Long-range Sensor Array Improved Signal Interpreter Advanced Terrain Scanner Makeshift Cloaking Device Improved Propulsion Shielding > --- WEAPON (4) ------- Heavy Machine Gun Heavy Machine Gun Heavy Machine Gun > --- INVENTORY (28) --- Improved Deuterium Engine Improved Deuterium Engine Improved Deuterium Engine Medium Treads Medium Treads Flexi-carbon Leg Flexi-carbon Leg Flexi-carbon Leg Flexi-carbon Leg Flexi-carbon Leg Power Amplifier Coolant Injector Coolant Injector Compact Battery (300) Advanced Sensor Array Improved Signal Interpreter Focal Shield Focal Shield Relay Coupler [NC] (33) Relay Coupler [NC] (27) Relay Coupler [NC] (22) Relay Coupler [NC] (34) Relay Coupler [Grunt] (31) Relay Coupler [Grunt] (33) Relay Coupler [Sentry] (19) Peak State ------------ > --- POWER ------------ Nuclear Core > --- PROPULSION ------- Improved Treads Improved Treads > --- UTILITY ---------- High-capacity Storage Unit High-capacity Storage Unit Army-in-a-Box > --- WEAPON ----------- AWS/Gauss > --- INVENTORY -------- Reinforced Fission Core High-capacity Storage Unit Improved Sensor Array Improved Terrain Scanner Improved Terrain Scanner Heavy Armor Plating Hardened Medium Armor Plating Thermal Shield Improved Hardlight Generator Heavy Assault Rifle Heavy Assault Rifle High-powered Shotgun Gauss Rifle Gauss Rifle Flak Gun 8R-AWN's Boregun 8R-AWN's Boregun [Rating: 86] Favorites ----------- Power Reinforced Fission Core Engine Improved Deuterium Engine Power Core Reinforced Fission Core Propulsion Improved Treads Treads Improved Treads Leg Flexi-carbon Leg Wheel Wheel Utility High-capacity Storage Unit Device Coolant Injector Storage High-capacity Storage Unit Processor Advanced Targeting Computer Hackware Relay Coupler [Sentry] Protection Hardened Medium Armor Plating Weapon Heavy Machine Gun Energy Gun Lightning Gun Energy Cannon EM Pulse Cannon Ballistic Gun Heavy Machine Gun Ballistic Cannon Advanced Assault Cannon Launcher Heavy Rocket Launcher Special Weapon Remote Datajack Build | -11 -10 -10 -10 -9 -8 -7 -7 -7 -7 -6 -6 ------- Run | Scr Mat Min Exi Min Mat Fac Gar Fac Gar Fac Low Slots Evolved 8 | . . . . . 4 2 . . . 2 . Power . | . . . . . . . . . . . . Propulsion . | . . . . . . . . . . . . Utility 6 | . . . . . 4 2 . . . . . Weapon 2 | . . . . . . . . . . 2 . Parts Attached 220 | 7 9 . 23 4 18 4 15 61 27 33 19 Power 11 | 1 . . 2 . 1 . . 1 1 1 4 Engine 6 | 1 . . 1 . . . . . 1 1 2 Core 5 | . . . 1 . 1 . . 1 . . 2 Reactor . | . . . . . . . . . . . . Propulsion 34 | 2 5 . 6 2 3 . . 6 3 5 2 Treads 14 | 1 3 . 4 . 2 . . 2 1 1 . Leg 12 | . . . . . . . . 4 2 4 2 Wheel 8 | 1 2 . 2 2 1 . . . . . . Hover . | . . . . . . . . . . . . Flight . | . . . . . . . . . . . . Utility 58 | 2 2 . 2 . 11 4 9 14 4 6 4 Device 26 | 1 . . . . 4 3 4 7 1 4 2 Storage 10 | 1 2 . 2 . 2 . 1 . . 1 1 Processor 5 | . . . . . 1 . . 2 1 1 . Hackware 3 | . . . . . . . 2 1 . . . Protection 14 | . . . . . 4 1 2 4 2 . 1 Artifact . | . . . . . . . . . . . . Weapon 117 | 2 2 . 13 2 3 . 6 40 19 21 9 Energy Gun 16 | . . . . . . . . 13 1 2 . Energy Cannon 21 | . 2 . 4 . . . . 3 7 2 3 Ballistic Gun 56 | 2 . . 9 2 3 . 5 16 3 14 2 Ballistic Cannon 4 | . . . . . . . . 1 2 . 1 Launcher 17 | . . . . . . . 1 4 6 3 3 Special Weapon 3 | . . . . . . . . 3 . . . Impact Weapon . | . . . . . . . . . . . . Slashing Weapon . | . . . . . . . . . . . . Piercing Weapon . | . . . . . . . . . . . . Special Melee Weapon . | . . . . . . . . . . . . Unidentified Prototypes 5 | . . . . . 3 . . 2 . . . Parts Lost 42 | . . . 7 . 1 . . 9 13 6 6 Power 6 | . . . 2 . . . . 1 1 1 1 Propulsion 9 | . . . 3 . . . . 1 4 1 . Utility 9 | . . . . . 1 . . 2 4 1 1 Weapon 18 | . . . 2 . . . . 5 4 3 4 Highest Loss Streak 8 | . . . 3 . 1 . . 3 8 4 3 Average Slot Usage (%) 93 | . 100 100 92 95 93 100 66 98 93 94 97 Engine 4 | . 14 14 11 . . . . . 3 5 5 Core 4 | . . . 1 14 9 7 7 7 3 . . Treads 7 | . 15 14 26 3 1 15 15 3 3 4 . Leg 6 | . . . . . . . . 11 6 7 12 Wheel 2 | . 12 14 . 21 16 . . . . . . Device 13 | . 7 . . . 6 23 7 18 17 19 18 Storage 22 | . 20 28 28 28 24 23 17 23 23 20 20 Processor 7 | . . . . . 9 5 . 6 14 13 12 Hackware 1 | . . . . . . . 1 3 . . . Protection 3 | . . . . . 7 8 4 7 3 . . Energy Gun 2 | . . . . . . . . 6 2 1 . Energy Cannon 2 | . 3 28 . . . . . 2 2 . 4 Ballistic Gun 12 | . 24 . 22 27 17 15 7 5 4 20 20 Launcher 1 | . . . . . . . 2 . 4 . . Naked Turns . | . . . . . . . . . . . . Heaviest Build 163 | 14 45 45 95 95 139 129 163 145 141 133 141 Greatest Support 46 | 10 46 10 46 23 46 46 46 46 38 40 40 Greatest Overweight (x) 9 | 1 4 4 7 9 6 2 3 7 5 6 4 Average Overweight (x) 3 | . 2 4 1 3 5 2 2 3 4 3 3 Largest Inventory Capacity 28 | 6 16 16 20 20 28 28 28 28 28 28 28 Average Capacity 24 | 5 10 16 19 20 25 28 22 28 28 28 28 Most Carried 28 | 6 16 16 20 20 28 28 28 28 28 28 28 Average Carried 22 | 4 10 16 18 19 22 26 20 23 25 27 26 Final Capacity 28 | 6 16 16 20 20 28 28 28 28 28 28 28 Final Carried 28 | 6 16 16 19 20 28 28 17 28 28 28 25 Class Distribution -------------------- 70% | Hauler-Mutant 16% | Hauler-Skirmisher 8% | Mutant Dominant Class ---------------- Mutant | -10/Materials Mutant | -10/Mines Hauler-Mutant | -10/Exiles Hauler-Mutant | -9/Mines Hauler-Mutant | -8/Materials Hauler-Skirmisher | -7/Factory Hauler-Mutant | -7/Garrison Hauler-Mutant | -7/Factory Hauler-Mutant | -7/Garrison Hauler-Skirmisher | -6/Factory Hauler-Skirmisher | -6/Lower Caves Resources | -11 -10 -10 -10 -9 -8 -7 -7 -7 -7 -6 -6 ----------- Run | Scr Mat Min Exi Min Mat Fac Gar Fac Gar Fac Low Matter Collected 4803 | 348 228 . 219 96 541 226 295 1055 608 491 696 Remotely 490 | . . . . . 183 226 81 . . . . Salvage Created 5843 | 192 282 51 219 129 775 265 142 1876 854 547 511 Parts 321 | 13 13 6 5 5 55 14 7 102 43 36 22 Haulers Intercepted 3 | . . . . . 1 . . 2 . . . Recyclers Shooed 7 | . 1 . . . 1 1 . 4 . . . Parts Field Recycled . | . . . . . . . . . . . . Retrieved Matter . | . . . . . . . . . . . . Parts Self-Destructed 5 | . . . . . . . . . . . 5 Prevented . | . . . . . . . . . . . . Kills | -11 -10 -10 -10 -9 -8 -7 -7 -7 -7 -6 -6 ------- Run | Scr Mat Min Exi Min Mat Fac Gar Fac Gar Fac Low Combat Hostiles Destroyed 107 | . 6 3 8 . 10 4 3 25 24 9 15 Guns 61 | . 6 . 7 . 10 4 1 13 5 6 9 Cannons 15 | . . 3 1 . . . . 2 5 1 3 AOE 24 | . . . . . . . 2 7 10 2 3 Classes Destroyed 19 | 2 3 . 1 1 7 . 1 1 . . 3 Worker 6 | . . . . 1 1 . . 3 . 1 . Builder 1 | . . . . . 1 . . . . . . Tunneler 7 | 5 . . . . . . . 2 . . . Hauler 3 | . . . . . 1 . . 2 . . . Recycler 8 | 1 1 . . 1 . . . 4 . 1 . Carrier 1 | . . . . . 1 . . . . . . Mechanic 1 | . . . . . 1 . . . . . . Operator 3 | . 1 . . . 2 . . . . . . Drone 18 | . . . . . . . 18 . . . . Watcher 4 | . . . . . 1 . . 1 . 2 . Swarmer 29 | . 3 3 . . 2 . . . 12 4 5 Grunt 33 | . 3 . . . 4 . 3 11 7 . 5 Brawler 1 | . . . . . . . . . . . 1 Sentry 17 | . . . . . 3 3 . 5 4 1 1 Hunter 9 | . . . . . 1 1 . 3 1 3 . Programmer 7 | . . . . . . . . 6 . 1 . Samaritan 3 | . . . . . . . . . . . 3 Master Thief 3 | . . . . . . . . . . . 3 Assembled 7 | . . . 7 . . . . . . . . Best Kill Streak 7 | 2 4 3 7 1 6 2 3 4 6 4 4 Combat Bots Only 7 | . 2 3 7 . 5 2 3 3 6 4 4 Max Kills in Single Turn 18 | 1 1 1 2 1 3 1 18 2 3 2 2 Gunslinging . | . . . . . . . . . . . . Exploded 3 | . . . . . . . 2 2 3 1 2 Melee . | . . . . . . . . . . . . Uniques/NPCs Destroyed 1 | . . . 1 . . . . . . . . 8R-AWN (-10/Exiles) Combat | -11 -10 -10 -10 -9 -8 -7 -7 -7 -7 -6 -6 -------- Run | Scr Mat Min Exi Min Mat Fac Gar Fac Gar Fac Low Damage Taken 9108 | . 173 40 1286 . 693 493 310 1852 2079 1018 1164 Core 858 | . 37 . 124 . 22 63 . 178 241 98 95 Absorbed by Shields 185 | . . . . . . . . 185 . . . Core Remaining (%) 65 | 100 . . . 35 96 . . . 31 . . Volleys Fired 409 | 13 24 6 23 3 33 13 25 102 65 19 83 Largest 4 | 2 2 2 2 2 2 2 2 2 2 4 4 Hottest 211 | 40 112 112 112 46 60 60 60 130 138 211 180 Shots Fired 802 | 26 48 8 75 6 67 26 28 171 82 62 203 Gun 624 | 26 46 . 67 6 67 26 25 137 31 54 139 Cannon 126 | . 2 8 8 . . . . 16 35 4 53 Launcher 41 | . . . . . . . 3 7 16 4 11 Special 11 | . . . . . . . . 11 . . . Kinetic 544 | 26 46 . 67 6 67 26 25 61 28 50 142 Thermal 75 | . . . . . . . . 10 11 4 50 Explosive 27 | . . . . . . . 3 1 8 4 11 Electromagnetic 145 | . 2 8 8 . . . . 88 35 4 . Robot Hit Streak 21 | 14 14 2 5 5 6 12 14 21 17 11 16 Robot Miss Streak 8 | 2 2 2 2 3 7 1 3 8 2 5 8 Penetration Max 2 | . . . . . 2 1 1 1 . . . Secondary Targets 5 | . . . . . 3 . . . . 1 1 Max Gunslinging Chain 1 | . . . . . 1 . . . . 1 1 Autonomous 62 | . . . 48 . 1 . . . . 13 . Shots Hit Robots 472 | 18 35 3 39 3 24 20 10 129 59 42 90 Core Hits 288 | 7 12 3 16 2 23 6 33 73 43 34 36 Critical Hits 53 | . . . 1 . 30 13 5 3 1 . . Critical Kills 19 | . . . . . 12 4 2 1 . . . Critical Parts Destroyed 30 | . . . . . 18 6 3 2 1 . . Melee Attacks . | . . . . . . . . . . . . Impact . | . . . . . . . . . . . . Slashing . | . . . . . . . . . . . . Piercing . | . . . . . . . . . . . . Sneak Attacks . | . . . . . . . . . . . . Combat Hostiles . | . . . . . . . . . . . . Follow-up Attacks . | . . . . . . . . . . . . Damage Inflicted 17019 | 220 460 57 1041 46 884 362 3913 3261 2404 1186 3185 Guns 7592 | 220 435 . 1035 46 815 362 243 2069 381 811 1175 Cannons 2022 | . 25 57 6 . . . . 213 724 108 889 Explosions 7351 | . . . . . 69 . 3670 950 1299 267 1096 Melee . | . . . . . . . . . . . . Ramming 54 | . . . . . . . . 29 . . 25 Kinetic 6380 | 220 435 . 1035 46 815 362 243 867 425 702 1230 Thermal 1685 | . . . . . . . . 501 241 109 834 Explosive 6113 | . . . . . 69 . 3670 162 885 231 1096 Electromagnetic 2787 | . 25 57 6 . . . . 1702 853 144 . Impact . | . . . . . . . . . . . . Slashing . | . . . . . . . . . . . . Piercing . | . . . . . . . . . . . . Highest Corruption 7 | . . . . . . . . 6 7 2 2 Average Corruption 3 | . . . . . . . . 3 6 1 2 Corruption Purged . | . . . . . . . . . . . . Effects 101 | . . . . . . . . 32 52 5 12 Message Errors 17 | . . . . . . . . 6 4 1 6 Matter Fused 27 | . . . . . . . . 8 19 . . Heat Flow Errors 15 | . . . . . . . . 3 9 . 3 Energy Discharges 13 | . . . . . . . . 5 4 2 2 Data Loss (minor) 15 | . . . . . . . . 3 11 1 . Data Loss (major) 2 | . . . . . . . . 1 1 . . Misfires 2 | . . . . . . . . 2 . . . Targeting Errors 8 | . . . . . . . . 3 4 . 1 Weapon Failures 2 | . . . . . . . . 1 . 1 . Overload Shots . | . . . . . . . . . . . . Overflow Damage 571 | . . . . . 16 . 258 29 50 43 175 Projectiles 98 | . . . . . . . . . 22 . 76 Explosions 473 | . . . . . 16 . 258 29 28 43 99 Melee . | . . . . . . . . . . . . Knockbacks . | . . . . . . . . . . . . Impact . | . . . . . . . . . . . . Kinetic . | . . . . . . . . . . . . Secondary . | . . . . . . . . . . . . Self-Inflicted Damage 892 | . . . . . . . 195 304 172 64 157 Shots 26 | . . . . . . . 2 9 8 2 5 Rammed 3 | . . . . . . . . 1 . . 2 Targets Rammed 5 | . . . . . . . . 1 . . 4 Kicked 2 | . . . . . . . . . . . 2 Crushed . | . . . . . . . . . . . . Highest Temperature 327 | . 51 115 51 12 69 78 64 247 240 193 327 Average Temperature 75 | . 18 57 24 6 19 35 37 67 98 59 100 Received Heat Transfer 1982 | . 75 . 20 . 279 120 45 453 516 60 414 Effects 3 | . . . . . . . . 2 . . 1 Interference 2 | . . . . . . . . 2 . . . Damage (minor) 1 | . . . . . . . . . . . 1 Siege Activations . | . . . . . . . . . . . . Robots Corrupted 7 | . . . . . . . . 3 4 . . Combat Hostiles 7 | . . . . . . . . 3 4 . . Parts Fried 11 | . . . . . . . . 7 3 1 . Impact Corruptions . | . . . . . . . . . . . . Robots Melted . | . . . . . . . . . . . . Combat Hostiles . | . . . . . . . . . . . . Parts Melted 2 | . . . . . . 1 . . . . 1 Heat Transferred 1774 | . . . . . . . . 400 205 170 999 Parts Sabotaged . | . . . . . . . . . . . . Parts Stolen 10 | . . . . . . . . . . . 10 Parts Stripped . | . . . . . . . . . . . . Power Chain Reactions 6 | . . . . . . . . 3 3 . . Missiles Intercepted . | . . . . . . . . . . . . Alert | -11 -10 -10 -10 -9 -8 -7 -7 -7 -7 -6 -6 ------- Run | Scr Mat Min Exi Min Mat Fac Gar Fac Gar Fac Low Peak Influence 1166 | 30 194 92 . 25 364 275 1166 736 1126 869 . Initial 611 | . 19 7 . . 9 97 195 611 515 590 . Average 551 | 16 106 57 . 18 213 139 829 543 891 690 . Maximum Alert Level 4 | . . . . . 1 1 4 3 4 3 . Low Security (%) 19 | 100 100 100 . 100 33 72 16 . . . . Level 1 9 | . . . . . 66 27 6 3 . . . Level 2 38 | . . . . . . . 7 86 15 42 . Level 3 29 | . . . . . . . 51 9 77 57 . Level 4 3 | . . . . . . . 18 . 7 . . Level 5 . | . . . . . . . . . . . . High Security . | . . . . . . . . . . . . Max Security . | . . . . . . . . . . . . Squads Dispatched 25 | . 1 . . . 2 4 . 15 . 3 . Investigation 3 | . . . . . . 1 . 1 . 1 . Extermination 8 | . . . . . . . . 7 . 1 . Reinforcement 8 | . 1 . . . 2 . . 4 . 1 . Assault . | . . . . . . . . . . . . Garrison 6 | . . . . . . 3 . 3 . . . Intercept . | . . . . . . . . . . . . Construction Impeded . | . . . . . . . . . . . . Haulers Reinforced . | . . . . . . . . . . . . Stealth | -11 -10 -10 -10 -9 -8 -7 -7 -7 -7 -6 -6 --------- Run | Scr Mat Min Exi Min Mat Fac Gar Fac Gar Fac Low Distress Signals 4 | . 1 . . . . . . 3 . . . Communications Jammed . | . . . . . . . . . . . . Distress Signals . | . . . . . . . . . . . . Times Spotted 166 | . 9 3 8 . 26 4 13 40 22 13 28 Peak Tracking Total 9 | . 2 3 9 . 8 1 5 3 7 5 4 Tactical Retreats 21 | . 1 . 3 . 8 . 1 2 2 1 3 Traps | -11 -10 -10 -10 -9 -8 -7 -7 -7 -7 -6 -6 ------- Run | Scr Mat Min Exi Min Mat Fac Gar Fac Gar Fac Low Traps Triggered 6 | . . . . . . . 2 . 3 1 . Indirectly . | . . . . . . . . . . . . Trap Hack Attempts . | . . . . . . . . . . . . Triggered . | . . . . . . . . . . . . Disarmed . | . . . . . . . . . . . . Reprogrammed 6 | . . . . . . . . 6 . . . Reused 1 | . . . . . . . . 1 . . . Traps Extracted . | . . . . . . . . . . . . Installed . | . . . . . . . . . . . . Triggered 1 | . . . . . . . . 1 . . . Machines | -11 -10 -10 -10 -9 -8 -7 -7 -7 -7 -6 -6 ---------- Run | Scr Mat Min Exi Min Mat Fac Gar Fac Gar Fac Low Machines Disabled 30 | . . 1 5 1 6 . 4 7 3 3 . Max in Single Turn 2 | . . 1 1 1 1 . 2 2 1 2 . Garrison Relay 4 | . . . . . . . 1 . 3 . . Phase Generator 1 | . . . . . . . 1 . . . . Machines Sabotaged 1 | . . . . . . 1 . . . . . Garrisons Compromised . | . . . . . . . . . . . . Overloaded Fab Kills . | . . . . . . . . . . . . Fab Network Shutdowns . | . . . . . . . . . . . . Hacking | -11 -10 -10 -10 -9 -8 -7 -7 -7 -7 -6 -6 --------- Run | Scr Mat Min Exi Min Mat Fac Gar Fac Gar Fac Low Machines Accessed 25 | . 2 . 5 . 8 2 . 7 . 1 . Terminals 10 | . 2 . . . 5 1 . 2 . . . Fabricators 2 | . . . . . . . . 1 . 1 . Repair Stations 4 | . . . . . 2 . . 2 . . . Recycling Units 1 | . . . . . . . . 1 . . . Scanalyzers 1 | . . . . . 1 . . . . . . Garrison Access 2 | . . . . . . 1 . 1 . . . Total Hacks 106 | . 7 . 50 . 27 4 . 15 . 3 . Successful 86 | . 6 . 50 . 17 3 . 7 . 3 . Failed 20 | . 1 . . . 10 1 . 8 . . . Catastrophic 1 | . . . . . . . . 1 . . . Database Lockouts . | . . . . . . . . . . . . Manual 31 | . 5 . 1 . 14 3 . 6 . 2 . Terminals 29 | . 7 . . . 16 3 . 3 . . . Fabricators 6 | . . . . . . . . 3 . 3 . Repair Stations 15 | . . . . . 8 . . 7 . . . Recycling Units 1 | . . . . . . . . 1 . . . Scanalyzers 3 | . . . . . 3 . . . . . . Garrison Access 2 | . . . . . . 1 . 1 . . . Terminal Hacks 58 | . 4 . 50 . 3 . . 1 . . . Record 50 | . 1 . 49 . . . . . . . . Branch Access Points 1 | . . . . . 1 . . . . . . Terminal Index 2 | . 1 . . . 1 . . . . . . Locate Traps 1 | . 1 . . . . . . . . . . Reprogram Traps 1 | . . . . . . . . 1 . . . Recall Reinforcements 1 | . . . . . 1 . . . . . . Hauler Manifests 1 | . 1 . . . . . . . . . . EX-Prototype ID Bank 1 | . . . 1 . . . . . . . . Fabricator Hacks 1 | . . . . . . . . . . 1 . Build 1 | . . . . . . . . . . 1 . Repair Station Hacks 10 | . . . . . 6 . . 4 . . . Scan Component 5 | . . . . . 3 . . 2 . . . Repair 5 | . . . . . 3 . . 2 . . . Recycling Unit Hacks 1 | . . . . . . . . 1 . . . Report Inventory 1 | . . . . . . . . 1 . . . Scanalyzer 3 | . . . . . 3 . . . . . . Insert Component 1 | . . . . . 1 . . . . . . Analyze 2 | . . . . . 2 . . . . . . Garrison Access Hacks 2 | . . . . . . 1 . 1 . . . Unlock Access 2 | . . . . . . 1 . 1 . . . Unauthorized Hacks 11 | . 2 . . . 5 2 . . . 2 . Terminals 9 | . 2 . . . 5 2 . . . . . Track 1 | . . . . . 1 . . . . . . Botnet 6 | . 2 . . . 4 . . . . . . Detonate 1 | . . . . . . 1 . . . . . Sabotage 1 | . . . . . . 1 . . . . . Fabricators 2 | . . . . . . . . . . 2 . Prioritize 1 | . . . . . . . . . . 1 . Siphon 1 | . . . . . . . . . . 1 . Repair Stations . | . . . . . . . . . . . . Recycling Units . | . . . . . . . . . . . . Scanalyzers . | . . . . . . . . . . . . Garrison Access . | . . . . . . . . . . . . Data Cores Recovered 1 | . . . . . 1 . . . . . . Used 1 | . . . . . 1 . . . . . . Hacking Detections 17 | . 2 . . . 7 1 . 6 . 1 . Full Trace Events 1 | . . . . . . . . 1 . . . Feedback Events . | . . . . . . . . . . . . Feedback Blocked . | . . . . . . . . . . . . Robot Schematics Acquired . | . . . . . . . . . . . . Robots Built 1 | . . . . . . . . . . 1 . Matter 285 | . . . . . . . . . . 285 . Time 152 | . . . . . . . . . . 152 . Total Robot Build Rating 5 | . . . . . . . . . . 5 . Part Schematics Acquired 1 | . . . . . 1 . . . . . . Parts Built . | . . . . . . . . . . . . Matter . | . . . . . . . . . . . . Time . | . . . . . . . . . . . . Total Part Build Rating . | . . . . . . . . . . . . Parts Repaired 5 | . . . . . 3 . . 2 . . . Time 155 | . . . . . 120 . . 35 . . . Parts Recycled . | . . . . . . . . . . . . Recycled Matter . | . . . . . . . . . . . . Retrieved Matter . | . . . . . . . . . . . . Retrieved Components . | . . . . . . . . . . . . Parts Scanalyzed 1 | . . . . . 1 . . . . . . Part Schematics Acquired 1 | . . . . . 1 . . . . . . Parts Damaged . | . . . . . . . . . . . . Bothacking | -11 -10 -10 -10 -9 -8 -7 -7 -7 -7 -6 -6 ------------ Run | Scr Mat Min Exi Min Mat Fac Gar Fac Gar Fac Low Used RIF Installer 2 | . . . . . . . 1 . 1 . . Watcher Feeds 1 | . . . . . . . . . 1 . . Robots Hacked 4 | . . . . . . . . 4 . . . Non-combat 2 | . . . . . . . . 2 . . . Combat 2 | . . . . . . . . 2 . . . Robot Hacks Applied 8 | . . . . . . . . 8 . . . no_distress 1 | . . . . . . . . 1 . . . map_earth 1 | . . . . . . . . 1 . . . purge_threat 1 | . . . . . . . . 1 . . . find_terminals 1 | . . . . . . . . 1 . . . amplify_resonance 1 | . . . . . . . . 1 . . . wipe_record 2 | . . . . . . . . 2 . . . disable_weapons 1 | . . . . . . . . 1 . . . Relay Couplers Released 19 | . . . . . . . 4 . 15 . . Machine Destruction 19 | . . . . . . . 4 . 15 . . Attached 3 | . . . . . . . 2 1 . . . Robots Rewired . | . . . . . . . . . . . . Allies Hacked . | . . . . . . . . . . . . Hacks Repelled . | . . . . . . . . . . . . Allies | -11 -10 -10 -10 -9 -8 -7 -7 -7 -7 -6 -6 -------- Run | Scr Mat Min Exi Min Mat Fac Gar Fac Gar Fac Low Total Allies 1 | . . . . . . . . . . 1 . Largest Group 1 | . . . . . . . . . . 1 . Highest-Rated Group 23 | . . . . . . . . . . 23 . Highest-Rated Ally 23 | . . . . . . . . . . 23 . Total Orders . | . . . . . . . . . . . . Ally Attacks 102 | . . . . . . . 102 . . . . Total Damage 2215 | . . . . . . . 2215 . . . . Kills 21 | . . . . . . . 21 . . . . Allies Corrupted . | . . . . . . . . . . . . Allies Melted . | . . . . . . . . . . . . Intel | -11 -10 -10 -10 -9 -8 -7 -7 -7 -7 -6 -6 ------- Run | Scr Mat Min Exi Min Mat Fac Gar Fac Gar Fac Low Robot Analysis Total . | . . . . . . . . . . . . Derelict Logs Recovered 2 | . . 1 . 1 . . . . . . . Drone Launches 30 | . . . . . . . 30 . . . . Drone Recoveries . | . . . . . . . . . . . . Exploration | -11 -10 -10 -10 -9 -8 -7 -7 -7 -7 -6 -6 ------------- Run | Scr Mat Min Exi Min Mat Fac Gar Fac Gar Fac Low Turns Passed 11817 | 203 484 237 1380 219 871 162 806 3119 1756 903 1677 Spaces Moved 4809 | 153 236 114 675 108 400 47 328 1153 650 339 606 Core 4 | 4 . . . . . . . . . . . Treads 1934 | . 3 . 663 18 25 47 328 366 354 130 . Legs 1898 | . . . . . . . . 787 296 209 606 Wheels 973 | 149 233 114 12 90 375 . . . . . . Hover . | . . . . . . . . . . . . Flight . | . . . . . . . . . . . . Fastest Speed 50 | 50 90 120 150 120 130 200 180 200 210 200 180 Average Speed 196 | 87 110 120 181 138 141 200 216 225 237 219 211 Slowest Speed 340 | 90 160 120 240 240 260 200 220 340 260 280 240 Overloaded Moves . | . . . . . . . . . . . . Propulsion Burnouts . | . . . . . . . . . . . . Robots Hopped . | . . . . . . . . . . . . Cave-ins Triggered . | . . . . . . . . . . . . Exploration Rate (%) 36 | 5 39 27 79 33 34 1 50 28 76 11 58 Regions Visited 11 Branch Regions 4 Pre-discovered Areas 1 | . . . 1 . . . . . . . . Known Exits Taken 4 | . . . . . 1 1 . 1 . 1 . Unknown Exits Taken 5 | 1 1 1 1 1 . . . . . . . Scrap Searched . | . . . . . . . . . . . . Spaces Dug 26 | . . . . . . . . 10 13 . 3 Terrain Destroyed 488 | . . . 16 . 32 . 100 58 62 32 188 Melee . | . . . . . . . . . . . . Projectile 73 | . . . 16 . 17 . 5 . . 6 29 AOE 415 | . . . . . 15 . 95 58 62 26 159 Terrain Rammed . | . . . . . . . . . . . . Walls Destroyed . | . . . . . . . . . . . . Machines Disabled . | . . . . . . . . . . . . Actions | -11 -10 -10 -10 -9 -8 -7 -7 -7 -7 -6 -6 --------- Run | Scr Mat Min Exi Min Mat Fac Gar Fac Gar Fac Low Total 6567 | 192 415 206 806 172 645 88 403 1508 802 467 863 Wait 805 | 12 116 87 55 52 152 21 . 102 39 35 134 Move 4800 | 152 235 113 674 107 399 47 327 1153 649 338 606 Hop . | . . . . . . . . . . . . Pick Up 171 | 7 18 . 13 2 24 2 14 46 13 19 13 Fast Attach 59 | 7 3 . 3 2 6 1 4 17 2 12 2 Attach 78 | . . . 12 2 9 2 8 13 12 10 10 Detach 18 | . 1 . 2 2 5 . 2 3 2 1 . Swap 83 | . 6 . 8 . 3 1 3 31 13 11 7 Drop 131 | 1 12 . 16 2 14 1 16 40 3 22 4 Fire 409 | 13 24 6 23 3 33 13 25 102 65 19 83 Melee . | . . . . . . . . . . . . Ram . | . . . . . . . . . . . . Kick 5 | . . . . . . . . 1 . . 4 Crush . | . . . . . . . . . . . . Escape Stasis 8 | . . . . . . . 4 . 4 . . Rewire . | . . . . . . . . . . . . Trap . | . . . . . . . . . . . . Miscellaneous . | . . . . . . . . . . . . Route ------- -11/Scrapyard -10/Materials -10/Mines (discovered 2 exits: [*Mat] / *Exi) -10/Exiles -9/Mines -8/Materials (discovered 2 exits: *Fac / Sto) -7/Factory -7/Garrison -7/Factory -7/Garrison (discovered 3 exits: *Fac x3) -6/Factory -6/Lower Caves History --------- Turn | Location | Event 17 | -11/Scrapyard | Discovered new exit (range 14) 204 | -11/Scrapyard | Entered Materials 300 | -10/Materials | Build established: Mutant 473 | -10/Materials | Discovered new exit (range 9) 688 | -10/Materials | Entered Mines 739 | -10/Mines | Discovered new exit (range 6) 771 | -10/Mines | Learned location of 1 exit from Materials 838 | -10/Mines | Assembled infested the area 843 | -10/Mines | Assisted by a Guerilla fighting off Assembled 848 | -10/Mines | Deemed a non-threat by the Exiles lab entrance 848 | -10/Mines | Discovered new exit (range 5) 925 | -10/Mines | Entered Exiles 970 | -10/Exiles | Met 8R-AWN 996 | -10/Exiles | Met EX-HEX 1108 | -10/Exiles | Met EX-DEC 1148 | -10/Exiles | Visited The Gauntlet 1307 | -10/Exiles | Discovered new exit (range 14) 1351 | -10/Exiles | Build established: Hauler-Mutant 1532 | -10/Exiles | Met EX-BIN 1558 | -10/Exiles | Aligned with FarCom system 1559 | -10/Exiles | Given EX-Vault access code 1603 | -10/Exiles | Opened EX-Vault 1614 | -10/Exiles | Found AWS/Gauss 1628 | -10/Exiles | Found Modified TNC 1664 | -10/Exiles | Attacked by the Exiles 1709 | -10/Exiles | Destroyed 7 combat bots 1805 | -10/Exiles | Destroyed 8R-AWN 1825 | -10/Exiles | Found Prototype Protection 1827 | -10/Exiles | Found Prototype Ballistic Gun 1831 | -10/Exiles | Found Prototype Ballistic Gun 1835 | -10/Exiles | Lost 3 parts (2n1w) 1862 | -10/Exiles | Found Army-in-a-Box 2160 | -10/Exiles | Learned location of Zion (-6) 2167 | -10/Exiles | Core integrity fell below 50% 2199 | -10/Exiles | Lost 3 parts (1p1n1w) 2305 | -10/Exiles | Stole three prototypes: AWS/Gauss, Modified TNC, Army-in-a-Box 2305 | -10/Exiles | Entered Mines 2496 | -9/Mines | Discovered new exit (range 9) 2524 | -9/Mines | Entered Materials 2524 | -8/Materials | Evolved 4 slots: Utility x4 2525 | -8/Materials | Identified exit to Storage 2526 | -8/Materials | Identified exit to Factory 2565 | -8/Materials | Identified 8R-AWN's Boregun (x2) 2691 | -8/Materials | Identified 8R-AWN's Armor/EX 2820 | -8/Materials | Repaired Rnf. Fission Core 3098 | -8/Materials | Repaired Hrd. Medium Armor Plating 3128 | -8/Materials | Repaired Wheel 3395 | -8/Materials | Entered Factory 3395 | -7/Factory | Evolved 2 slots: Utility x2 3557 | -7/Factory | Identified exit to Garrison 3557 | -7/Factory | Entered Garrison 3567 | -7/Garrison | Installed Relay Interface Framework 3692 | -7/Garrison | Triggered checkpoint 3715 | -7/Garrison | Triggered checkpoint 3728 | -7/Garrison | Triggered checkpoint 3806 | -7/Garrison | Triggered checkpoint 4027 | -7/Garrison | Discovered new exit (range 17) 4162 | -7/Garrison | Garrison Relay disabled 4212 | -7/Garrison | Phase Generator disabled 4363 | -7/Garrison | Entered Factory 4581 | -7/Factory | Repaired Imp. Treads 4602 | -7/Factory | Repaired Hrd. Medium Armor Plating 5002 | -7/Factory | Lost 3 parts (1n1u1w) 5966 | -7/Factory | Garrison activated, responded to threat 7482 | -7/Factory | Identified exit to Garrison 7482 | -7/Factory | Entered Garrison 7630 | -7/Garrison | Triggered checkpoint 7645 | -7/Garrison | Triggered checkpoint 7678 | -7/Garrison | Core integrity fell below 50% 7751 | -7/Garrison | Lost 8 parts (2n3u3w) 7910 | -7/Garrison | Triggered checkpoint 7978 | -7/Garrison | Discovered new exit (range 12) 8076 | -7/Garrison | Garrison Relay disabled 8270 | -7/Garrison | Triggered checkpoint 8294 | -7/Garrison | Discovered new exit (range 11) 8312 | -7/Garrison | Lost 5 parts (1p2n1u1w) 8404 | -7/Garrison | Triggered checkpoint 8404 | -7/Garrison | Garrison Relay disabled 9040 | -7/Garrison | Triggered checkpoint 9112 | -7/Garrison | Garrison Relay disabled 9183 | -7/Garrison | Discovered new exit (range 12) 9227 | -7/Garrison | Expanded RIF knowledge: Patrol Navigation 9238 | -7/Garrison | Entered Factory 9238 | -6/Factory | Evolved 2 slots: Weapon x2 9743 | -6/Factory | Build established: Hauler-Skirmisher 9831 | -6/Factory | Fabricated A-15 Conveyor? 10052 | -6/Factory | Lost 4 parts (1p1n1u1w) 10081 | -6/Factory | Discovered new exit (range 15) 10114 | -6/Factory | Identified exit to Lower Caves 10141 | -6/Factory | Entered Lower Caves 10413 | -6/Lower Caves | Lost 3 parts (1p2w) 10695 | -6/Lower Caves | Attracted the attention of an 0b10 checkpoint 10802 | -6/Lower Caves | Spotted FM-RZ5(f) 10803 | -6/Lower Caves | Encountered a Master Thief 10818 | -6/Lower Caves | Spotted NL-EQL(f) 10819 | -6/Lower Caves | Encountered a Master Thief 10820 | -6/Lower Caves | Destroyed FM-RZ5(f) 10823 | -6/Lower Caves | Flexi-carbon Leg stolen by Master Thief 11141 | -6/Lower Caves | Spotted SA-DDY(f) 11143 | -6/Lower Caves | Encountered a Master Thief 11143 | -6/Lower Caves | Spotted XR-H98(f) 11144 | -6/Lower Caves | Encountered a Master Thief 11144 | -6/Lower Caves | Nanoactuators stolen by Master Thief 11145 | -6/Lower Caves | Neutrino Core stolen by Master Thief 11187 | -6/Lower Caves | Spotted 8D-EQ6(f) 11188 | -6/Lower Caves | Encountered a Master Thief 11191 | -6/Lower Caves | Spotted N6-8AC(f) 11192 | -6/Lower Caves | Encountered a Master Thief 11201 | -6/Lower Caves | Hvy. Machine Gun stolen by Master Thief 11206 | -6/Lower Caves | Destroyed 8D-EQ6(f) 11542 | -6/Lower Caves | Spotted E6-UGD(f) 11543 | -6/Lower Caves | Encountered a Master Thief 11546 | -6/Lower Caves | Neutrino Core stolen by Master Thief 11546 | -6/Lower Caves | Destroyed E6-UGD(f) 11550 | -6/Lower Caves | Spotted L8-JQU(f) 11551 | -6/Lower Caves | Encountered a Master Thief 11556 | -6/Lower Caves | Matter Compressor stolen by Master Thief 11743 | -6/Lower Caves | Spotted 9G-HON(f) 11744 | -6/Lower Caves | Encountered a Master Thief 11748 | -6/Lower Caves | Nanoactuators stolen by Master Thief 11781 | -6/Lower Caves | Master Tearclaws stolen by Master Thief 11782 | -6/Lower Caves | Encountered a Master Thief 11790 | -6/Lower Caves | Spotted 0X-O2I(f) 11791 | -6/Lower Caves | Encountered a Master Thief 11793 | -6/Lower Caves | Spotted 3A-XTI(f) 11794 | -6/Lower Caves | Encountered a Master Thief 11796 | -6/Lower Caves | Neutrino Core stolen by Master Thief 11803 | -6/Lower Caves | Hvy. Machine Gun stolen by Master Thief 11818 | -6/Lower Caves | Self-destructed Last Messages --------------- 11549_ Acquired 16 matter. 11554_ Phase Cannon destroyed. 11556_ Matter Compressor ripped off. 11571_ Acquired Imp. Propulsion Shielding. 11574_ Acquired Master Tearclaws. 11581_ Acquired Nanoactuators. 11584_ Discarded Adv. Targeting Computer. 11584_ Acquired Mak. Cloaking Device. 11590_ Dropped Nuclear Pulse Thruster. 11591_ Acquired Neutrino Core. 11628_ System corrupted: Energy discharge (-3). 11691_ S-27 Virus destroyed. 11748_ Nanoactuators stolen. 11781_ Master Tearclaws stolen. 11782_ WO-OVH(f): "Ha, caught you!" 11795_ Kicked 3A-XTI(f) out of the way. 11796_ Neutrino Core ripped off. 11797_ Slammed into 3A-XTI(f). 11803_ Hvy. Machine Gun ripped off. 11803_ Kicked 3A-XTI(f) out of the way. Map ----- +----------------------------------------------------+ | ??????????????#??????#???????????????#???????????? | | ???????????????????????????#?????????#??#????????? | | ???#??????????????????????????????#??????????????? | | ??????????????#????????#?##??????????????????????? | | ????#?#???#????????????????????????????????#?????? | | ??????????#??#????#?????????#???????#??????#?????? | | ??????????????????##??????#???????#???#??????????? | | ?????#???????????????#?#??????????????????#??????? | | ????????#????##?????#??????#?????????#???????????? | | ????#????#?????#????????#?????????#??????????????? | | #?#??#???????#??????????#??#??????#?#???????????#? | | ???????????#?#??#??????##????#???#??##??#????????? | | #????#??#??????????#?##???????##?????#???????????? | | ????#???????????#????????#???######????##???##???? | | ???????#####??########?#???### ##??###??# #???? | | ?????### ##### #??##?#?# ###???## ##??? | | ###### ## #????#??# #??## ##?? | | ###??#?#?# #### #?? | | #;##??#???# #?? | | ######## #### = =##?#??## #?? | | ?????????## ##?## = !###### ### ##?? | | ???????#?# #?###; = #?# ##?? | | ??????????# ####### #?# ##?? | | ????#?#?### #??#?## ## ### ###?? | | ????#??#?# ##??### ### ## #??? | | ???????#??## ###### @ #?# # ### | | ??? ????### ## #?## ### # | | ???% $ s #?## #?# #? | | ?# ## #?# #?# ##? | | ?# ###### ##### #####?# ### ## ###? | | ?# ?? ?#???## #???## #??##?# ##?# #?####?## | | ????????????# ##?##?### ###??## #?## ####?###? | | ????????????####?#??#?####????# #?# ### #? | | ????? ???#?????? ???????#????? #?# ## | | ? ????? ?????#?? ???##??????#? ??# #! # | | ??? ????#?????????? ???#???#? ??# # ### | | ? ???????????????????????????? ? # #?### ! | | ????????????#?????????????#?????? ##### ##?### | | ?????????#????##????? ?????##?## ????## ????## | | ?????????????????#??? ???#??#??#????#?## ???##### | | ????????#??????? ????????????#???? ???## ???????? | | ??????????????????????? ??? ??? ???? ? ? ??#??? | | ???????????????????????? ? ??? ???? ?? ??????# | | ????????#??????????????????????#?? ?#??# ??????? | | ?????????????????????????????????##?#??? ####????? | | ????????????????#???????????????????????### ##???? | | ???????????????????????????? ???????#????# ##### | | ??????????????????????????????????????#?## | | ?????????????????????????????? ???##????# | | ????????????????????????????????????????# | +----------------------------------------------------+ Best States ------------- Heat Dissipation 48 Coolant Potential 65 Energy Generation 19 Energy Capacity 315 Matter Stores 300 Matter Capacity 550 Sight Range 16 Robot Scan Range 20 Terrain Scan Range 20 Terrain Scan Density 10 Cloak Strength 3 Armor Coverage 1000 Resistance: KI 20 Resistance: TH 20 Resistance: EX 90 Propulsion Shielding 66 Weapon Cycling 15 Evasion (%) 44 Targeting Accuracy 8 Recoil Reduction 2 Salvage Targeting 2 Relay Coupler Types 55 Relay Coupler Value 2 Item Schematics ----------------- Rnf. Fission Core | -8/Materials | Scanalyzed Robot Schematics ------------------ None Fabricated ------------ A-15 Conveyor | x1 | -6/Factory | Preloaded Alien Tech Used ----------------- None Achievements -------------- Infiltrator Challenges ------------ None Game ------ Seed PropulsionOpticalJammer Manual? 0 Play Time 02:10:32 Cumulative 122.3 hours Start 2020.09.20 @ 19:27:27 End 2020.10.15 @ 17:06:32 Sessions 8 Manual Loads 0 Difficulty Rogue Special Mode None Game No. 77 Rogue 77 Adventurer 0 Explorer 0 Win Type - Total 2 Types 2/0/0/0/0/0/0/0/0 Lore% 33 Gallery% 54 Achievement% 43 Wizard Run 0 Options --------- ASCII 0 Keyboard 0 Movement Mouse Keybinds 0 Fullscreen 2 Font 18/TerminusBold Map View 76x50 Tactical HUD 1 Map Filters NONE Filters NONE Steam 1 RUN: e1e1bc84-bbb8-445a-be96-31a3b1ead0f8